[Event "3rd Sharjah Masters 2019"]
[Site "Sharjah"]
[Date "2019.03.26"]
[Round "5.47"]
[White "Mihoubi, Saad"]
[Black "Mullick, Raahil"]
[Result "0-1"]
[ECO "A48"]
[WhiteElo "2088"]
[BlackElo "2275"]
[Annotator "NA"]
[PlyCount "123"]
[EventDate "2019.03.22"]
[EventType "swiss"]
[EventCountry "UAE"]
[SourceTitle "playchess.com"]
[Source "ChessBase"]
[SourceQuality "1"]
[TimeControl "5400+30"]

1. d4 {[%emt 0:01:30]} Nf6 {[%emt 0:00:00]} 2. Nf3 {[%emt 0:00:08]} g6 {[%emt 0:00:00]} 3. e3 {[%emt 0:00:09]} Bg7 {[%emt 0:00:00]} 4. c4 {[%emt 0:00:06]} O-O {[%emt 0:00:20]} 5. Nc3 {[%emt 0:00:08]} d6 {[%emt 0:00:10]} 6. Be2 {[%emt 0:00:17]} Nbd7 {[%emt 0:00:10]} 7. O-O {[%emt 0:00:14]} e5 {[%emt 0:00:44]} 8. Qc2 {[%emt 0:01:56]} Qe7 {[%emt 0:01:55]} 9. b3 {[%emt 0:02:13]} Re8 {[%emt 0:05:25]} 10. Bb2 {[%emt 0:00:40]} e4 {[%emt 0:02:51]} 11. Nd2 {[%emt 0:00:17]} Nf8 {[%emt 0:01:00]} 12. Nd5 {[%emt 0:03:46]} Nxd5 {[%emt 0:01:54]} 13. cxd5 {[%emt 0:00:09]} Bf5 {[%emt 0:01:26]} 14. Rfc1 {[%emt 0:00:29]} Rac8 {[%emt 0:01:22]} 15. b4 {[%emt 0:04:08]} h5 {[%emt 0:02:31]} 16. b5 {[%emt 0:02:54]} g5 {[%emt 0:03:54]} 17. a4 {[%emt 0:02:24]} Bg6 {[%emt 0:01:45]} 18. Ra3 {[%emt 0:00:31]} Nd7 {[%emt 0:22:52]} 19. Nc4 {[%emt 0:08:14]} b6 {[%emt 0:06:12]} 20. Qb3 {[%emt 0:03:16]} f5 {[%emt 0:06:45]} 21. a5 {[%emt 0:00:56]} f4 {[%emt 0:02:16]} 22. axb6 {[%emt 0:02:34]} axb6 {[%emt 0:00:13]} 23. Ra7 {[%emt 0:02:59]} f3 {[%emt 0:03:51]} 24. gxf3 {[%emt 0:03:03]} exf3 {[%emt 0:00:41]} 25. Bxf3 {[%emt 0:00:09]} Rf8 {[%emt 0:00:40]} 26. Bg2 {[%emt 0:08:00]} g4 {[%emt 0:07:21]} 27. Nd2 {[%emt 0:04:51]} Qf6 {[%emt 0:06:07]} 28. Rf1 {[%emt 0:07:56]} Bh6 {[%emt 0:01:23]} 29. Qc3 {[%emt 0:01:57]} Rf7 {[%emt 0:05:35]} 30. f4 {[%emt 0:12:44]} gxf3 {[%emt 0:00:48]} 31. Nxf3 {[%emt 0:02:15]} Re8 {[%emt 0:02:53]} 32. Ne5 {[%emt 0:06:43]} Qh4 {[%emt 0:10:28]} 33. Nxg6 {[%emt 0:03:33]} Rxf1+ {[%emt 0:00:38]} 34. Kxf1 {[%emt 0:00:15]} Qg4 {[%emt 0:00:36]} 35. e4 {[%emt 0:10:00]} Qxg6 {[%emt 0:01:03]} 36. Rxc7 {[%emt 0:02:18]} Rf8+ {[%emt 0:00:01]} 37. Kg1 {[%emt 0:00:21]} h4 {[%emt 0:01:39]} 38. Rxd7 {[%emt 0:00:22]} Qg4 {[%emt 0:00:27]} 39. Qe1 {[%emt 0:02:04]} h3 {[%emt 0:01:01]} 40. Qg3 {[%emt 0:00:19]} Be3+ {[%emt 0:00:26]} 41. Kh1 {[%emt 0:00:16]} hxg2+ {[%emt 0:00:30]} 42. Qxg2 {[%emt 0:02:04]} Qxg2+ {[%emt 0:00:12]} 43. Kxg2 {[%emt 0:00:10]} Rf2+ {[%emt 0:00:07]} 44. Kg3 {[%emt 0:00:16]} Rxb2 {[%emt 0:00:07]} 45. Rxd6 {[%emt 0:00:28]} Bxd4 {[%emt 0:00:19]} 46. Re6 {[%emt 0:00:31]} Kf7 {[%emt 0:00:26]} 47. Kf4 {[%emt 0:01:28]} Rxb5 {[%emt 0:00:41]} 48. Rc6 {[%emt 0:00:23]} Rb2 {[%emt 0:00:41]} 49. Rc7+ {[%emt 0:00:36]} Kf6 {[%emt 0:00:15]} 50. Rc6+ {[%emt 0:00:12]} Ke7 {[%emt 0:00:21]} 51. Rc7+ {[%emt 0:00:34]} Kd6 {[%emt 0:01:23]} 52. Rc6+ {[%emt 0:00:08]} Kd7 {[%emt 0:00:00]} 53. e5 {[%emt 0:00:39]} Rxh2 {[%emt 0:01:21]} 54. e6+ {[%emt 0:00:10]} Ke7 {[%emt 0:00:39]} 55. Rc7+ {[%emt 0:00:07]} Kf6 {[%emt 0:00:32]} 56. Rf7+ {[%emt 0:00:36]} Kg6 {[%emt 0:00:01]} 57. Rb7 {[%emt 0:01:27]} Re2 {[%emt 0:00:54]} 58. Rb8 {[%emt 0:01:11]} Be5+ {[%emt 0:00:27]} 59. Kf3 {[%emt 0:00:27]} Bxb8 {[%emt 0:00:01]} 60. Kxe2 {[%emt 0:00:16]} Bd6 {[%emt 0:00:09]} 61. Kd3 {[%emt 0:00:12]} b5 {[%emt 0:00:13]} 62. Kd4 0-1

[Event "3rd Sharjah Masters 2019"]
[Site "Sharjah"]
[Date "2019.03.27"]
[Round "6.21"]
[White "Debashis, Das"]
[Black "Dhulipalla Bala Chandra Prasa"]
[Result "1/2-1/2"]
[ECO "C55"]
[WhiteElo "2532"]
[BlackElo "2384"]
[Annotator "ChessBase"]
[PlyCount "71"]
[EventDate "2019.03.22"]
[EventType "swiss"]
[EventCountry "UAE"]
[SourceTitle "playchess.com"]
[Source "ChessBase"]
[SourceQuality "1"]
[TimeControl "5400+30"]

1. e4 {[%emt 0:00:00]} e5 {[%emt 0:00:31]} 2. Nf3 {[%emt 0:00:00]} Nc6 {[%emt 0:00:05]} 3. Bc4 {[%emt 0:00:00]} Nf6 {[%emt 0:00:05]} 4. d3 {[%emt 0:00:01]} Be7 {[%emt 0:02:54]} 5. O-O {[%emt 0:00:07]} O-O {[%emt 0:00:03]} 6. Re1 {[%emt 0:00:21]} d6 {[%emt 0:00:04]} 7. a4 {[%emt 0:00:04]} Be6 {[%emt 0:04:50]} 8. Nbd2 {[%emt 0:00:10]} Qd7 {[%emt 0:01:38]} 9. Nf1 {[%emt 0:00:09]} Rfe8 {[%emt 0:24:14]} 10. Bg5 {[%emt 0:05:25]} Bxc4 {[%emt 0:03:34]} 11. dxc4 {[%emt 0:00:21]} Nd8 {[%emt 0:00:22]} 12. Bxf6 {[%emt 0:23:24]} Bxf6 {[%emt 0:00:38]} 13. Ne3 {[%emt 0:01:40]} Ne6 {[%emt 0:06:13]} 14. c3 {[%emt 0:00:47]} Rad8 {[%emt 0:03:47]} 15. a5 {[%emt 0:03:45]} g6 {[%emt 0:04:15]} 16. a6 {[%emt 0:01:47]} b6 {[%emt 0:00:45]} 17. b4 {[%emt 0:00:28]} Bg7 {[%emt 0:07:06]} 18. Qc2 {[%emt 0:08:30]} c6 {[%emt 0:07:17]} 19. Red1 {[%emt 0:10:46]} Qc8 {[%emt 0:08:53]} 20. Nd2 {[%emt 0:01:14]} Bh6 {[%emt 0:02:56]} 21. Ndf1 {[%emt 0:00:55]} Nc7 {[%emt 0:00:24]} 22. Qe2 {[%emt 0:02:21]} Qe6 {[%emt 0:03:02]} 23. Qd3 {[%emt 0:01:48]} Qc8 {[%emt 0:04:12]} 24. Ra2 {[%emt 0:02:22]} Ne6 {[%emt 0:01:47]} 25. Qb1 {[%emt 0:04:57]} Rd7 {[%emt 0:01:34]} 26. Qb3 {[%emt 0:05:57]} Red8 {[%emt 0:00:55]} 27. Kh1 {[%emt 0:02:15]} Ng5 {[%emt 0:02:07]} 28. Qb1 {[%emt 0:00:56]} Ne6 {[%emt 0:00:16]} 29. Qb3 {[%emt 0:00:08]} Ng5 {[%emt 0:00:02]} 30. f3 {[%emt 0:00:43]} Ne6 {[%emt 0:00:06]} 31. Ng4 {[%emt 0:04:38]} Bg5 {[%emt 0:00:31]} 32. Nf2 {[%emt 0:01:22]} h5 {[%emt 0:01:57]} 33. Nh3 {[%emt 0:06:34]} Bh6 {[%emt 0:00:15]} 34. Nf2 {[%emt 0:00:05]} Bg5 {[%emt 0:00:03]} 35. Nh3 {[%emt 0:01:09]} Bh6 {[%emt 0:00:07]} 36. Nf2 {[%emt 0:00:52]} 1/2-1/2

[Event "3rd Sharjah Masters 2019"]
[Site "Sharjah"]
[Date "2019.03.27"]
[Round "6.34"]
[White "Tissir, Mohamed"]
[Black "Thrish, Karthik"]
[Result "1/2-1/2"]
[ECO "C41"]
[WhiteElo "2386"]
[BlackElo "2096"]
[Annotator "NA"]
[PlyCount "35"]
[EventDate "2019.03.22"]
[EventType "swiss"]
[EventCountry "UAE"]
[SourceTitle "playchess.com"]
[Source "ChessBase"]
[SourceQuality "1"]
[TimeControl "5400+30"]

1. e4 {[%emt 0:00:00]} e5 {[%emt 0:09:39]} 2. Nf3 {[%emt 0:00:00]} d6 {[%emt 0:00:03]} 3. d4 {[%emt 0:00:12]} exd4 {[%emt 0:00:05]} 4. Nxd4 {[%emt 0:00:05]} Nf6 {[%emt 0:00:03]} 5. Nc3 {[%emt 0:00:08]} Be7 {[%emt 0:00:02]} 6. Bc4 {[%emt 0:00:10]} O-O {[%emt 0:00:33]} 7. O-O {[%emt 0:00:06]} c6 {[%emt 0:01:14]} 8. Re1 {[%emt 0:00:54]} Re8 {[%emt 0:01:28]} 9. Bf4 {[%emt 0:00:35]} Bf8 {[%emt 0:04:45]} 10. a4 {[%emt 0:00:35]} a5 {[%emt 0:04:47]} 11. h3 {[%emt 0:00:48]} Nbd7 {[%emt 0:02:58]} 12. Ba2 {[%emt 0:32:27]} Ne5 {[%emt 0:07:03]} 13. Nf3 {[%emt 0:10:21]} Nxf3+ {[%emt 0:14:53]} 14. Qxf3 {[%emt 0:00:09]} Be6 {[%emt 0:00:02]} 15. Bxe6 {[%emt 0:16:59]} Rxe6 {[%emt 0:01:15]} 16. Re2 {[%emt 0:12:50]} Nd7 {[%emt 0:04:14]} 17. Rd1 {[%emt 0:05:35]} Qf6 {[%emt 0:07:34]} 18. Bg3 {[%emt 0:07:29]} 1/2-1/2

[Event "3rd Sharjah Masters 2019"]
[Site "Sharjah"]
[Date "2019.03.27"]
[Round "6.35"]
[White "Pranav Vijay"]
[Black "Zaibi, Amir"]
[Result "1-0"]
[ECO "B31"]
[WhiteElo "2265"]
[BlackElo "2386"]
[Annotator "NA"]
[PlyCount "47"]
[EventDate "2019.03.22"]
[EventType "swiss"]
[EventCountry "UAE"]
[SourceTitle "playchess.com"]
[Source "ChessBase"]
[SourceQuality "1"]
[TimeControl "5400+30"]

1. e4 {[%emt 0:00:00]} c5 {[%emt 0:01:55]} 2. Nf3 {[%emt 0:00:00]} Nc6 {[%emt 0:00:04]} 3. Bb5 {[%emt 0:00:00]} g6 {[%emt 0:00:08]} 4. O-O {[%emt 0:00:41]} Bg7 {[%emt 0:00:05]} 5. Re1 {[%emt 0:00:40]} e5 {[%emt 0:00:52]} 6. Bxc6 {[%emt 0:01:40]} dxc6 {[%emt 0:00:43]} 7. d3 {[%emt 0:00:20]} Qc7 {[%emt 0:04:28]} 8. Nbd2 {[%emt 0:02:37]} h6 {[%emt 0:03:30]} 9. Nc4 {[%emt 0:04:19]} Be6 {[%emt 0:00:16]} 10. Bd2 {[%emt 0:01:34]} Rd8 {[%emt 0:07:32]} 11. Qe2 {[%emt 0:01:15]} Nf6 {[%emt 0:10:26]} 12. Nfxe5 {[%emt 0:07:37]} Nh5 {[%emt 0:01:54]} 13. Nf3 {[%emt 0:00:27]} Bxc4 {[%emt 0:10:50]} 14. dxc4 {[%emt 0:00:07]} Bxb2 {[%emt 0:00:24]} 15. Rab1 {[%emt 0:00:05]} Bf6 {[%emt 0:10:37]} 16. e5 {[%emt 0:00:54]} Be7 {[%emt 0:00:04]} 17. e6 {[%emt 0:00:12]} Bf6 {[%emt 0:01:58]} 18. Qe3 {[%emt 0:03:15]} Qe7 {[%emt 0:18:12]} 19. g4 {[%emt 0:01:54]} Ng7 {[%emt 0:00:56]} 20. exf7+ {[%emt 0:00:09]} Kxf7 {[%emt 0:01:52]} 21. Qxe7+ {[%emt 0:00:59]} Bxe7 {[%emt 0:00:03]} 22. Rxb7 {[%emt 0:02:44]} Rhe8 {[%emt 0:01:41]} 23. Bxh6 {[%emt 0:00:21]} Ne6 {[%emt 0:01:37]} 24. Ng5+ {[%emt 0:00:08]} 1-0

[Event "3rd Sharjah Masters 2019"]
[Site "Sharjah"]
[Date "2019.03.27"]
[Round "6.36"]
[White "Saurabh Anand"]
[Black "Gokhale, Anupama"]
[Result "1-0"]
[ECO "B12"]
[WhiteElo "2385"]
[BlackElo "1994"]
[Annotator "NA"]
[PlyCount "67"]
[EventDate "2019.03.22"]
[EventType "swiss"]
[EventCountry "UAE"]
[SourceTitle "playchess.com"]
[Source "ChessBase"]
[SourceQuality "1"]
[TimeControl "5400+30"]

1. e4 {[%emt 0:02:02]} c6 {[%emt 0:00:00]} 2. d4 {[%emt 0:00:35]} d5 {[%emt 0:00:08]} 3. e5 {[%emt 0:00:30]} Bf5 {[%emt 0:00:25]} 4. h4 {[%emt 0:00:33]} h5 {[%emt 0:00:22]} 5. c4 {[%emt 0:00:15]} e6 {[%emt 0:01:10]} 6. Nc3 {[%emt 0:00:41]} Ne7 {[%emt 0:01:50]} 7. Bg5 {[%emt 0:00:40]} Nd7 {[%emt 0:03:44]} 8. cxd5 {[%emt 0:00:46]} exd5 {[%emt 0:01:49]} 9. Nge2 {[%emt 0:01:34]} Qb6 {[%emt 0:15:30]} 10. Qd2 {[%emt 0:01:16]} Be6 {[%emt 0:18:57]} 11. Ng3 {[%emt 0:06:48]} Nf5 {[%emt 0:03:03]} 12. Nxf5 {[%emt 0:00:40]} Bxf5 {[%emt 0:00:08]} 13. Bd3 {[%emt 0:15:15]} Bxd3 {[%emt 0:10:02]} 14. Qxd3 {[%emt 0:00:24]} Bb4 {[%emt 0:12:41]} 15. O-O {[%emt 0:06:14]} Nf8 {[%emt 0:05:09]} 16. Ne2 {[%emt 0:04:46]} Ne6 {[%emt 0:01:44]} 17. a3 {[%emt 0:00:55]} Bf8 {[%emt 0:03:08]} 18. f4 {[%emt 0:02:44]} Qc7 {[%emt 0:05:47]} 19. b4 {[%emt 0:10:43]} b5 {[%emt 0:06:08]} 20. Rac1 {[%emt 0:01:57]} a5 {[%emt 0:00:28]} 21. f5 {[%emt 0:00:38]} Nxg5 {[%emt 0:00:37]} 22. hxg5 {[%emt 0:00:10]} axb4 {[%emt 0:01:08]} 23. axb4 {[%emt 0:00:08]} Bxb4 {[%emt 0:01:09]} 24. Nf4 {[%emt 0:02:20]} Qb6 {[%emt 0:01:33]} 25. f6 {[%emt 0:01:37]} gxf6 {[%emt 0:01:50]} 26. e6 {[%emt 0:00:23]} O-O-O {[%emt 0:03:18]} 27. exf7 {[%emt 0:00:16]} fxg5 {[%emt 0:00:38]} 28. Ne6 {[%emt 0:01:49]} Kb7 {[%emt 0:00:52]} 29. Nxd8+ {[%emt 0:00:28]} Rxd8 {[%emt 0:00:07]} 30. Rf6 {[%emt 0:00:23]} Rc8 {[%emt 0:00:30]} 31. Kh1 {[%emt 0:00:54]} Bf8 {[%emt 0:00:27]} 32. Re6 {[%emt 0:01:05]} b4 {[%emt 0:00:58]} 33. Re8 {[%emt 0:00:30]} Qc7 {[%emt 0:00:37]} 34. Ra1 {[%emt 0:00:55]} 1-0

[Event "3rd Sharjah Masters 2019"]
[Site "Sharjah"]
[Date "2019.03.27"]
[Round "6.37"]
[White "Sapaev, Maksad"]
[Black "Rathnakaran, K.."]
[Result "0-1"]
[ECO "B06"]
[WhiteElo "2214"]
[BlackElo "2361"]
[Annotator "NA"]
[PlyCount "88"]
[EventDate "2019.03.22"]
[EventType "swiss"]
[EventCountry "UAE"]
[SourceTitle "playchess.com"]
[Source "ChessBase"]
[SourceQuality "1"]
[TimeControl "5400+30"]

1. e4 {[%emt 0:01:20]} g6 {[%emt 0:00:00]} 2. d4 {[%emt 0:00:06]} d6 {[%emt 0:00:00]} 3. Nc3 {[%emt 0:00:03]} c6 {[%emt 0:00:00]} 4. Be3 {[%emt 0:00:52]} b5 {[%emt 0:00:01]} 5. Qd2 {[%emt 0:00:34]} a6 {[%emt 0:00:20]} 6. f3 {[%emt 0:00:46]} Bb7 {[%emt 0:00:08]} 7. h4 {[%emt 0:05:58]} Nd7 {[%emt 0:00:33]} 8. h5 {[%emt 0:01:15]} Bg7 {[%emt 0:00:20]} 9. a4 {[%emt 0:14:39]} Qc7 {[%emt 0:00:43]} 10. axb5 {[%emt 0:03:08]} cxb5 {[%emt 0:00:09]} 11. Bd3 {[%emt 0:11:08]} Ngf6 {[%emt 0:01:28]} 12. g4 {[%emt 0:04:01]} Nb6 {[%emt 0:00:08]} 13. b3 {[%emt 0:04:00]} Nfd7 {[%emt 0:04:46]} 14. Nce2 {[%emt 0:06:43]} e5 {[%emt 0:00:23]} 15. d5 {[%emt 0:03:43]} f5 {[%emt 0:10:02]} 16. Bxb6 {[%emt 0:09:21]} Nxb6 {[%emt 0:02:32]} 17. hxg6 {[%emt 0:00:49]} hxg6 {[%emt 0:00:40]} 18. Rxh8+ {[%emt 0:00:10]} Bxh8 {[%emt 0:00:07]} 19. gxf5 {[%emt 0:00:05]} gxf5 {[%emt 0:06:02]} 20. Qg5 {[%emt 0:00:25]} Qf7 {[%emt 0:00:10]} 21. Ng3 {[%emt 0:02:10]} Bc8 {[%emt 0:01:32]} 22. exf5 {[%emt 0:03:26]} Bf6 {[%emt 0:00:08]} 23. Qg4 {[%emt 0:01:00]} Ke7 {[%emt 0:00:28]} 24. c4 {[%emt 0:02:48]} Bd7 {[%emt 0:01:11]} 25. Qe4 {[%emt 0:03:26]} bxc4 {[%emt 0:00:41]} 26. Bxc4 {[%emt 0:02:09]} Rg8 {[%emt 0:01:47]} 27. N1e2 {[%emt 0:00:26]} Qh7 {[%emt 0:00:55]} 28. Kd2 {[%emt 0:06:20]} Qh2 {[%emt 0:08:43]} 29. Rh1 {[%emt 0:03:18]} Qf2 {[%emt 0:00:07]} 30. Rh7+ {[%emt 0:00:59]} Kd8 {[%emt 0:00:11]} 31. Nh5 {[%emt 0:03:24]} Bg5+ {[%emt 0:00:05]} 32. Kd1 {[%emt 0:06:12]} Nxc4 {[%emt 0:02:43]} 33. Rxd7+ {[%emt 0:00:18]} Kxd7 {[%emt 0:00:08]} 34. bxc4 {[%emt 0:00:05]} Rb8 {[%emt 0:00:51]} 35. Nhg3 {[%emt 0:01:17]} Rb2 {[%emt 0:00:25]} 36. Qd3 {[%emt 0:00:53]} Rd2+ {[%emt 0:00:11]} 37. Qxd2 {[%emt 0:00:01]} Bxd2 {[%emt 0:00:07]} 38. Kxd2 {[%emt 0:00:03]} Qxf3 {[%emt 0:00:08]} 39. f6 {[%emt 0:00:35]} a5 {[%emt 0:00:08]} 40. f7 {[%emt 0:00:06]} Ke7 {[%emt 0:00:10]} 41. c5 {[%emt 0:01:06]} dxc5 {[%emt 0:00:09]} 42. d6+ {[%emt 0:00:06]} Kxf7 {[%emt 0:00:10]} 43. Kc2 {[%emt 0:00:46]} Ke6 {[%emt 0:00:16]} 44. Nc3 {[%emt 0:00:05]} Qxg3 {[%emt 0:00:14]} 0-1

[Event "3rd Sharjah Masters 2019"]
[Site "Sharjah"]
[Date "2019.03.27"]
[Round "6.38"]
[White "Fenil, Shah"]
[Black "Dr., Murtaza Ali"]
[Result "1-0"]
[ECO "D02"]
[WhiteElo "2360"]
[BlackElo "2084"]
[Annotator "NA"]
[PlyCount "69"]
[EventDate "2019.03.22"]
[EventType "swiss"]
[EventCountry "UAE"]
[SourceTitle "playchess.com"]
[Source "ChessBase"]
[SourceQuality "1"]
[TimeControl "5400+30"]

1. d4 {[%emt 0:00:00]} d5 {[%emt 0:00:00]} 2. Nf3 {[%emt 0:00:29]} Nf6 {[%emt 0:00:00]} 3. Bf4 {[%emt 0:00:34]} e6 {[%emt 0:00:07]} 4. e3 {[%emt 0:00:10]} Bd6 {[%emt 0:00:27]} 5. Bg3 {[%emt 0:01:54]} O-O {[%emt 0:00:20]} 6. Bd3 {[%emt 0:00:13]} b6 {[%emt 0:00:38]} 7. Nbd2 {[%emt 0:02:47]} Bb7 {[%emt 0:00:13]} 8. c3 {[%emt 0:01:36]} c5 {[%emt 0:01:05]} 9. Qe2 {[%emt 0:03:23]} Ne4 {[%emt 0:01:02]} 10. Rd1 {[%emt 0:08:18]} c4 {[%emt 0:09:13]} 11. Bb1 {[%emt 0:07:18]} f5 {[%emt 0:02:28]} 12. Nxe4 {[%emt 0:05:32]} fxe4 {[%emt 0:00:06]} 13. Ne5 {[%emt 0:01:20]} Bxe5 {[%emt 0:02:23]} 14. Bxe5 {[%emt 0:01:27]} Nd7 {[%emt 0:00:31]} 15. Bg3 {[%emt 0:07:38]} Qg5 {[%emt 0:02:38]} 16. f3 {[%emt 0:09:22]} b5 {[%emt 0:00:55]} 17. O-O {[%emt 0:02:49]} Nf6 {[%emt 0:02:28]} 18. Be5 {[%emt 0:03:09]} Nd7 {[%emt 0:00:34]} 19. Bd6 {[%emt 0:01:01]} Rf7 {[%emt 0:00:55]} 20. fxe4 Rxf1+ {[%emt 0:00:52]} 21. Rxf1 {[%emt 0:00:53]} dxe4 {[%emt 0:00:03]} 22. Rf4 {[%emt 0:01:10]} h5 {[%emt 0:12:14]} 23. Qf2 {[%emt 0:07:31]} Nf6 {[%emt 0:05:52]} 24. Be7 {[%emt 0:01:31]} Kf7 {[%emt 0:01:03]} 25. Bxf6 {[%emt 0:00:39]} gxf6 {[%emt 0:00:02]} 26. Bxe4 {[%emt 0:00:08]} Bxe4 {[%emt 0:01:11]} 27. Rxe4 {[%emt 0:00:01]} Rg8 {[%emt 0:00:51]} 28. Rf4 {[%emt 0:00:33]} Qg6 {[%emt 0:02:59]} 29. e4 {[%emt 0:00:29]} Re8 {[%emt 0:01:14]} 30. h3 {[%emt 0:03:28]} a6 {[%emt 0:00:35]} 31. e5 {[%emt 0:00:26]} f5 {[%emt 0:00:28]} 32. d5 {[%emt 0:00:14]} exd5 {[%emt 0:04:49]} 33. Rxf5+ {[%emt 0:00:04]} Kg7 {[%emt 0:00:00]} 34. Qf4 {[%emt 0:01:07]} Kh7 {[%emt 0:02:40]} 35. Rf6 {[%emt 0:00:45]} 1-0

[Event "3rd Sharjah Masters 2019"]
[Site "Sharjah"]
[Date "2019.03.27"]
[Round "6.41"]
[White "Paramzina, Anastasya"]
[Black "Nasanjargal, Urtnasan"]
[Result "0-1"]
[ECO "B06"]
[WhiteElo "2196"]
[BlackElo "2503"]
[Annotator "RC"]
[PlyCount "130"]
[EventDate "2019.03.22"]
[EventType "swiss"]
[EventCountry "UAE"]
[SourceTitle "playchess.com"]
[Source "ChessBase"]
[SourceQuality "1"]
[TimeControl "5400+30"]

1. e4 {[%emt 0:00:00]} g6 {[%emt 0:00:00]} 2. d4 {[%emt 0:00:00]} Bg7 {[%emt 0:00:00]} 3. c3 {[%emt 0:00:19]} d6 {[%emt 0:00:59]} 4. Bc4 {[%emt 0:05:06]} Nf6 {[%emt 0:02:34]} 5. Qe2 {[%emt 0:00:54]} O-O {[%emt 0:01:12]} 6. Nf3 {[%emt 0:01:41]} Nc6 {[%emt 0:04:18]} 7. O-O {[%emt 0:23:07]} e5 {[%emt 0:00:13]} 8. dxe5 {[%emt 0:01:06]} dxe5 {[%emt 0:01:05]} 9. b4 {[%emt 0:08:41]} a6 {[%emt 0:12:07]} 10. a4 {[%emt 0:02:10]} Nh5 {[%emt 0:00:18]} 11. Rd1 {[%emt 0:02:07]} Qe8 {[%emt 0:11:23]} 12. Ba3 {[%emt 0:08:54]} Nf4 {[%emt 0:02:25]} 13. Qf1 {[%emt 0:07:14]} Be6 {[%emt 0:01:39]} 14. b5 {[%emt 0:01:01]} Bxc4 {[%emt 0:01:41]} 15. Qxc4 {[%emt 0:00:08]} axb5 {[%emt 0:02:35]} 16. axb5 {[%emt 0:00:04]} Na5 {[%emt 0:03:30]} 17. Qa2 {[%emt 0:14:19]} Qc8 {[%emt 0:04:00]} 18. h3 {[%emt 0:03:44]} Rd8 {[%emt 0:01:57]} 19. Rxd8+ {[%emt 0:03:08]} Qxd8 {[%emt 0:00:12]} 20. Kh2 {[%emt 0:00:02]} Qd3 {[%emt 0:12:14]} 21. Nbd2 {[%emt 0:00:02]} Qxb5 {[%emt 0:00:44]} 22. Bb4 {[%emt 0:00:39]} b6 {[%emt 0:00:19]} 23. Nc4 {[%emt 0:00:18]} Bf6 {[%emt 0:01:06]} 24. Bxa5 {[%emt 0:05:10]} bxa5 {[%emt 0:00:09]} 25. Nxa5 {[%emt 0:01:15]} c6 {[%emt 0:06:20]} 26. Nd2 {[%emt 0:00:54]} Bd8 {[%emt 0:14:53]} 27. Ndc4 {[%emt 0:01:28]} Ne6 {[%emt 0:00:12]} 28. Qd2 {[%emt 0:04:20]} Bxa5 {[%emt 0:00:57]} 29. Nxa5 {[%emt 0:00:07]} Nc5 {[%emt 0:02:49]} 30. c4 {[%emt 0:00:59]} Qb6 {[%emt 0:00:47]} 31. f3 {[%emt 0:00:55]} Ne6 {[%emt 0:03:52]} 32. Nb3 {[%emt 0:01:50]} Rxa1 {[%emt 0:00:20]} 33. Nxa1 {[%emt 0:00:09]} Nd4 {[%emt 0:00:06]} 34. Qa2 {[%emt 0:01:57]} Qc5 {[%emt 0:03:22]} 35. Kg3 {[%emt 0:01:40]} Kg7 {[%emt 0:01:42]} 36. h4 {[%emt 0:01:15]} Qb4 {[%emt 0:00:12]} 37. Kf2 {[%emt 0:00:25]} h5 {[%emt 0:00:34]} 38. Ke3 {[%emt 0:00:44]} Qc3+ {[%emt 0:00:33]} 39. Kf2 {[%emt 0:00:04]} c5 {[%emt 0:00:46]} 40. Kf1 {[%emt 0:00:11]} Qc1+ {[%emt 0:01:11]} 41. Kf2 {[%emt 0:00:04]} Qc3 {[%emt 0:02:28]} 42. Kf1 {[%emt 0:00:12]} Qe3 {[%emt 0:00:19]} 43. Qb1 {[%emt 0:00:35]} Qe2+ {[%emt 0:00:17]} 44. Kg1 {[%emt 0:00:04]} Qxc4 {[%emt 0:00:09]} 45. Kh2 {[%emt 0:01:24]} Qe2 {[%emt 0:00:33]} 46. Qb8 {[%emt 0:00:33]} Nxf3+ {[%emt 0:00:47]} 47. Kg3 {[%emt 0:01:15]} Ne1 {[%emt 0:00:56]} 48. Qxe5+ {[%emt 0:00:08]} Kh7 {[%emt 0:00:04]} 49. Qc3 {[%emt 0:01:22]} Qxe4 {[%emt 0:01:54]} 50. Kf2 {[%emt 0:00:38]} Nd3+ {[%emt 0:00:26]} 51. Kg1 {[%emt 0:00:23]} Qe3+ {[%emt 0:00:30]} 52. Kh2 {[%emt 0:00:12]} Qf4+ {[%emt 0:00:06]} 53. Kg1 {[%emt 0:00:10]} Qf2+ {[%emt 0:00:07]} 54. Kh2 {[%emt 0:00:02]} Qxh4+ {[%emt 0:00:06]} 55. Kg1 {[%emt 0:00:01]} Qf2+ {[%emt 0:00:28]} 56. Kh2 {[%emt 0:00:12]} Nf4 {[%emt 0:00:21]} 57. Qg3 {[%emt 0:00:08]} Qxg3+ {[%emt 0:00:23]} 58. Kxg3 {[%emt 0:00:03]} g5 {[%emt 0:00:17]} 59. Kf3 {[%emt 0:00:03]} f5 {[%emt 0:00:19]} 60. g3 {[%emt 0:00:10]} Ne6 {[%emt 0:00:24]} 61. Nc2 {[%emt 0:00:12]} Kg6 {[%emt 0:00:15]} 62. Ke3 {[%emt 0:00:53]} g4 {[%emt 0:00:24]} 63. Ne1 {[%emt 0:00:20]} Kg5 {[%emt 0:00:12]} 64. Ng2 {[%emt 0:00:01]} c4 {[%emt 0:00:29]} 65. Kd2 {[%emt 0:01:15]} Nc5 {[%emt 0:00:13]} 0-1